fUSD/lending_fUSD_20250607
["ID","MTS","AMOUNT","RATE_DAILY","PERIOD"]
[364874512,1749283874439,-990.87,0.0002789,5]
[364874513,1749283874450,-769.25,0.0002789,5]
[364874514,1749283874459,-1000.0,0.0002789,5]
[364874515,1749283874469,-480.0,0.0002789,5]
[364874516,1749283874479,-480.0,0.0002789,5]
[364874517,1749283874489,-480.0,0.0002789,5]
[364874518,1749283874499,-619.63,0.0002789,5]
[364874519,1749283874509,-480.0,0.0002789,5]
[364874520,1749283874518,-480.0,0.0002789,5]
[364874521,1749283874528,-964.13,0.0002789,5]
[364874522,1749283874538,-480.0,0.0002789,5]
[364874523,1749283874548,-480.0,0.0002789,5]
[364874524,1749283874557,-614.65,0.0002789,5]
[364874525,1749283874568,-480.0,0.0002789,5]
[364874526,1749283874578,-480.0,0.0002789,5]
[364874527,1749283874588,-480.0,0.0002789,5]
[364874528,1749283874597,-959.52,0.0002789,5]
[364874529,1749283874607,-620.08,0.0002789,5]
[364874530,1749283874618,-382.74147213,0.0002789,5]
[364874531,1749283874627,-517.93019711,0.0002789,5]
[364874532,1749283874637,-492.3366481,0.0002789,5]
[364874533,1749283874646,-571.94310867,0.0002789,5]
[364874534,1749283874656,-481.61,0.0002789,5]
[364874535,1749283874665,-607.29,0.0002789,5]
[364874536,1749283874675,-1150.03,0.0002789,5]
[364874537,1749283874684,-480.0,0.0002789,5]
[364874538,1749283874694,-647.25,0.0002789,5]
[364874539,1749283874704,-1086.55,0.0002789,5]
[364874540,1749283874713,-480.0,0.0002789,5]
[364874541,1749283874722,-480.0,0.0002789,5]
[364874542,1749283874732,-1473.87,0.0002789,5]
[364874543,1749283874740,-480.0,0.0002789,5]
[364874544,1749283874750,-480.0,0.0002789,5]
[364874545,1749283874759,-7690.81,0.0002789,5]
[364874546,1749283874768,-514.06484279,0.0002789,5]
[364874547,1749283874777,-480.0,0.0002789,5]
[364874548,1749283874787,-480.0,0.0002789,5]
[364874549,1749283874796,-501.9987913,0.0002789,5]
[364874550,1749283874805,-480.0,0.0002789,5]
[364874551,1749283874815,-480.0,0.0002789,5]
[364874552,1749283874824,-1206.45,0.0002789,5]
[364874553,1749283874834,-480.0,0.0002789,5]
[364874554,1749283874843,-480.0,0.0002789,5]
[364874555,1749283874853,-480.0,0.0002789,5]
[364874556,1749283874862,-480.0,0.0002789,5]
[364874557,1749283874873,-480.0,0.0002789,5]
[364874558,1749283874882,-594.14,0.0002789,5]
[364874559,1749283874892,-480.0,0.0002789,5]
[364874560,1749283874902,-656.54,0.0002789,5]
[364874561,1749283874910,-665.13,0.0002789,5]
[364874562,1749283874920,-502.09465456,0.0002789,5]
[364874563,1749283874929,-509.24,0.0002789,5]
[364874564,1749283874939,-480.0,0.0002789,5]
[364874565,1749283874948,-480.0,0.0002789,5]
[364874566,1749283874958,-867.98,0.0002789,5]
[364874567,1749283874967,-835.03,0.0002789,5]
[364874568,1749283874977,-1091.22,0.0002789,5]
[364874569,1749283874986,-788.44,0.0002789,5]
[364874570,1749283874996,-466.56828403,0.0002789,5]
[364874571,1749283875005,-480.0,0.0002789,5]
[364874572,1749283875015,-480.0,0.0002789,5]
[364874573,1749283875024,-2181.17,0.0002789,5]
[364874574,1749283875033,-480.0,0.0002789,5]
[364874575,1749283875045,-675.89,0.0002789,5]
[364874576,1749283875055,-1257.45,0.0002789,5]
[364874577,1749283875064,-1342.98,0.0002789,5]
[364874578,1749283875073,-480.0,0.0002789,5]
[364874579,1749283875083,-480.0,0.0002789,5]
[364874580,1749283875092,-5948.08,0.0002789,5]
[364874581,1749283875101,-748.21,0.0002789,5]
[364874582,1749283875111,-244.94722977,0.0002789,5]
[364874583,1749283875121,-480.0,0.0002789,5]
[364874584,1749283875131,-1325.93,0.0002789,5]
[364874585,1749283875142,-6018.65,0.0002789,5]
[364874586,1749283875152,-480.0,0.0002789,5]
[364874587,1749283875162,-480.0,0.0002789,5]
[364874588,1749283875171,-480.0,0.0002789,5]
[364874589,1749283875181,-480.0,0.0002789,5]
[364874590,1749283875190,-622.41,0.0002789,5]
[364874591,1749283875200,-1072.0,0.0002789,5]
[364874592,1749283875209,-1345.91,0.0002789,5]
[364874593,1749283875219,-480.0,0.0002789,5]
[364874594,1749283875229,-480.0,0.0002789,5]
[364874595,1749283875239,-965.47,0.0002789,5]
[364874596,1749283875249,-2147.53,0.0002789,2]
[364874597,1749283875259,-480.0,0.0002789,5]
[364874598,1749283875270,-480.0,0.0002789,5]
[364874599,1749283875279,-1671.91,0.0002789,5]
[364874600,1749283875289,-480.0,0.0002789,5]
[364874601,1749283875298,-2644.51,0.0002789,5]
[364874602,1749283875308,-2010.42,0.0002789,5]
[364874603,1749283875318,-514.60249879,0.0002789,5]
[364874604,1749283875330,-3264.83,0.0002789,5]
[364874605,1749283875340,-480.0,0.0002789,5]
[364874606,1749283875349,-1546.17,0.0002789,5]
[364874607,1749283875359,-480.0,0.0002789,5]
[364874608,1749283875370,-2124.13,0.0002789,5]
[364874609,1749283875379,-480.0,0.0002789,5]
[364874610,1749283875389,-480.0,0.0002789,5]
[364874611,1749283875399,-3803.92,0.0002789,5]
[364874612,1749283875409,-3035.15,0.0002789,5]
[364874613,1749283875418,-6110.32,0.0002789,5]
[364874614,1749283875428,-1458.57,0.0002789,5]
[364874615,1749283875438,-882.95,0.0002789,5]
[364874616,1749283875448,-1003.3,0.0002789,5]
[364874617,1749283875458,-480.0,0.0002789,5]
[364874618,1749283875468,-1170.49,0.0002789,5]
[364874619,1749283875477,-3633.12,0.0002789,5]
[364874620,1749283875488,-1000.0,0.0002789,5]
[364874621,1749283875497,-1513.66,0.0002789,5]
[364874622,1749283875507,-480.0,0.0002789,5]
[364874623,1749283875517,-596.66,0.0002789,5]
[364874624,1749283875527,-1093.12,0.0002789,5]
[364874625,1749283875538,-814.18,0.0002789,5]
[364874626,1749283875548,-480.0,0.0002789,5]
[364874627,1749283875559,-2008.91,0.0002789,5]
[364874628,1749283875569,-480.0,0.0002789,5]
[364874629,1749283875579,-495.78,0.0002789,5]
[364874630,1749283875589,-480.0,0.0002789,5]
[364874631,1749283875599,-802.83,0.0002789,5]
[364874632,1749283875608,-496.45483035,0.0002789,5]
[364874633,1749283875618,-2029.78,0.0002789,5]
[364874634,1749283875628,-2623.17,0.0002789,5]
[364874635,1749283875638,-5571.7,0.0002789,5]
[364874636,1749283875648,-501.6745686,0.0002789,5]
[364874637,1749283875657,-480.0,0.0002789,5]
[364874638,1749283875667,-480.0,0.0002789,5]
[364874639,1749283875676,-749.45,0.0002789,5]
[364874640,1749283875686,-480.0,0.0002789,5]
[364874641,1749283875696,-2770.74,0.0002789,5]
[364874642,1749283875706,-855.47,0.0002789,5]
[364874643,1749283875715,-1941.16,0.0002789,5]
[364874644,1749283875724,-1529.93,0.0002789,5]
[364874645,1749283875734,-734.71,0.0002789,5]
[364874646,1749283875743,-4023.49,0.0002789,5]
[364874647,1749283875753,-480.0,0.0002789,5]
[364874648,1749283875762,-480.0,0.0002789,5]
[364874649,1749283875771,-480.0,0.0002789,5]
[364874650,1749283875781,-1675.33,0.0002789,5]
[364874651,1749283875790,-525.98,0.0002789,5]
[364874652,1749283875800,-1753.76,0.0002789,5]
[364874653,1749283875809,-480.0,0.0002789,5]
[364874654,1749283875819,-967.54,0.0002789,5]
[364874655,1749283875829,-480.0,0.0002789,5]
[364874656,1749283875838,-480.0,0.0002789,5]
[364874657,1749283875849,-480.0,0.0002789,5]
[364874658,1749283875859,-480.0,0.0002789,5]
[364874659,1749283875870,-11876.34,0.0002789,5]
[364874660,1749283875879,-1453.1,0.0002789,5]
[364874661,1749283875889,-480.0,0.0002789,5]
[364874662,1749283875899,-480.0,0.0002789,5]
[364874663,1749283875910,-683.94,0.0002789,5]
[364874664,1749283875919,-480.0,0.0002789,5]
[364874665,1749283875929,-480.0,0.0002789,5]
[364874666,1749283875938,-1122.69,0.0002789,5]
[364874667,1749283875947,-10865.99,0.0002789,5]
[364874668,1749283875956,-480.0,0.0002789,5]
[364874669,1749283875966,-480.0,0.0002789,5]
[364874670,1749283875975,-871.56,0.0002789,5]
[364874671,1749283875985,-1581.96,0.0002789,5]
[364874672,1749283875994,-480.0,0.0002789,5]
[364874673,1749283876004,-480.0,0.0002789,5]
[364874674,1749283876013,-480.0,0.0002789,5]
[364874675,1749283876023,-480.0,0.0002789,5]
[364874676,1749283876034,-480.0,0.0002789,5]
[364874677,1749283876044,-813.01,0.0002789,5]
[364874678,1749283876055,-480.0,0.0002789,5]
[364874679,1749283876064,-480.0,0.0002789,5]
[364874680,1749283876074,-2227.22,0.0002789,5]
[364874681,1749283876083,-2000.65,0.0002789,5]
[364874682,1749283876093,-1731.59,0.0002789,5]
[364874683,1749283876102,-480.0,0.0002789,5]
[364874684,1749283876112,-2403.78,0.0002789,5]
[364874685,1749283876123,-480.0,0.0002789,5]
[364874686,1749283876132,-1327.04,0.0002789,5]
[364874687,1749283876142,-747.9,0.0002789,5]
[364874688,1749283876153,-480.0,0.0002789,5]
[364874689,1749283876163,-575.71,0.0002789,5]
[364874690,1749283876179,-480.0,0.0002789,5]
[364874691,1749283876190,-1386.31,0.0002789,5]
[364874692,1749283876200,-480.0,0.0002789,5]
[364874693,1749283876213,-492.12,0.0002789,5]
[364874694,1749283876223,-480.0,0.0002789,5]
[364874695,1749283876233,-480.0,0.0002789,5]
[364874696,1749283876244,-480.0,0.0002789,5]
[364874697,1749283876253,-4322.98,0.0002789,5]
[364874698,1749283876263,-518.65,0.0002789,5]
[364874699,1749283876273,-494.08,0.0002789,5]
[364874700,1749283876283,-480.0,0.0002789,5]
[364874701,1749283876293,-1066.78,0.0002789,5]
[364874702,1749283876302,-480.0,0.0002789,5]
[364874703,1749283876312,-1078.23,0.0002789,5]
[364874704,1749283876324,-499.42,0.0002789,5]
[364874705,1749283876333,-697.95,0.0002789,5]
[364874706,1749283876343,-957.28,0.0002789,5]
[364874707,1749283876353,-871.81,0.0002789,5]
[364874708,1749283876363,-1569.25,0.0002789,5]
[364874709,1749283876373,-480.0,0.0002789,5]
[364874710,1749283876382,-480.0,0.0002789,5]
[364874711,1749283876392,-480.0,0.0002789,5]
[364874712,1749283876405,-757.09,0.0002789,5]
[364874713,1749283876416,-3593.96,0.0002789,5]
[364874714,1749283876427,-869.93,0.0002789,5]
[364874715,1749283876437,-607.22,0.0002789,5]
[364874716,1749283876447,-1281.37,0.0002789,5]
[364874717,1749283876457,-1143.16,0.0002789,5]
[364874718,1749283876467,-480.0,0.0002789,5]
[364874719,1749283876477,-630.74,0.0002789,5]
[364874720,1749283876486,-689.06,0.0002789,5]
[364874721,1749283876496,-1387.38,0.0002789,5]
[364874722,1749283876506,-480.0,0.0002789,5]
[364874723,1749283876517,-480.0,0.0002789,5]
[364874724,1749283876527,-480.0,0.0002789,5]
[364874725,1749283876537,-2996.31,0.0002789,5]
[364874726,1749283876548,-480.0,0.0002789,5]
[364874727,1749283876558,-150.0,0.000279,2]
[364874728,1749283876568,-1600.0,0.000279,10]
[364874729,1749283876578,-512.391467,0.00027918,30]
[364874730,1749283876588,-1000.0,0.00027921,5]
[364874731,1749283876598,-501.57390108,0.00027921,5]
[364874732,1749283876608,-1035.0,0.00027936,2]
[364874733,1749283876818,-150.0,0.00027941,2]
[364874734,1749283876829,-150.0,0.00027941,2]
[364874735,1749283876838,-165.36091429,0.00027945,30]
[364874736,1749283876848,-165.36091429,0.00027945,30]
[364874737,1749283876858,-814.43744325,0.00027954,2]
[364874738,1749283876869,-1379.00397787,0.00027954,2]
[364874739,1749283876878,-296.10723875,0.00027969,18]
[364874740,1749283876888,-448.0,0.00027976,5]
[364874741,1749283876899,-150.0,0.00027977,2]
[364874742,1749283876909,-1000.0,0.00027994,2]
[364874743,1749283876919,-151.0,0.00028,7]
[364874744,1749283876928,-151.0,0.00028,7]
[364874745,1749283876938,-278.78,0.00028,2]
[364874746,1749283876947,-266.26250959,0.00028,2]
[364874747,1749283876957,-400.0,0.00028,2]
[364874748,1749283876967,-151.0,0.00028,7]
[364874749,1749283876978,-151.0,0.00028,7]
[364874750,1749283876988,-151.000001,0.00028,7]
[364874751,1749283876998,-6449.08,0.00028,2]
[364874752,1749283877008,-672.26,0.00028,2]
[364874753,1749283877018,-672.26,0.00028,2]
[364874754,1749283877028,-672.26,0.00028,2]
[364874755,1749283877039,-150.0,0.00028007,2]
[364874756,1749283877048,-150.0,0.00028012,2]
[364874757,1749283877058,-512.391467,0.00028027,30]
[364874758,1749283877068,-502.64900214,0.00028053,2]
[364874759,1749283877078,-2212.47,0.00028053,5]
[364874760,1749283877087,-2212.47,0.00028053,5]
[364874761,1749283877097,-794.82,0.00028053,2]
[364874762,1749283877120,-3176.64,0.00028053,5]
[364874763,1749283877130,-3176.64,0.00028053,5]
[364874764,1749283877140,-151.0,0.00028054,7]
[364874765,1749283877151,-151.0,0.00028054,7]
[364874766,1749283877162,-480.0,0.00028054,5]
[364874767,1749283877173,-631.92,0.00028054,5]
[364874768,1749283877183,-480.0,0.00028054,5]
[364874769,1749283877194,-480.0,0.00028054,5]
[364874770,1749283877204,-480.0,0.00028054,5]
[364874771,1749283877215,-480.0,0.00028054,5]
[364874772,1749283877227,-480.0,0.00028054,5]
[364874773,1749283877237,-480.0,0.00028054,5]
[364874774,1749283877247,-480.0,0.00028054,5]
[364874775,1749283877259,-480.0,0.00028054,5]
[364874776,1749283877270,-642.32,0.00028054,5]
[364874777,1749283877279,-1416.8,0.00028054,5]
[364874778,1749283877290,-480.0,0.00028054,5]
[364874779,1749283877303,-480.0,0.00028054,5]
[364874780,1749283877312,-506.33899313,0.00028054,5]
[364874781,1749283877326,-1800.62155246,0.00028054,2]
[364874782,1749283877336,-518.86895502,0.00028054,5]
[364874783,1749283877346,-480.0,0.00028054,5]
[364874784,1749283877356,-509.69302435,0.00028054,5]
[364874785,1749283877367,-151.0,0.00028054,2]
[364874786,1749283877377,-480.0,0.00028054,5]
[364874787,1749283877388,-480.0,0.00028054,5]
[364874788,1749283877398,-285.09912259,0.00028054,5]
[364874789,1749283877408,-505.71919651,0.00028054,5]
[364874790,1749283877419,-480.0,0.00028054,5]
[364874791,1749283877430,-722.44,0.00028054,5]
[364874792,1749283877440,-658.72,0.00028054,5]
[364874793,1749283877450,-480.0,0.00028054,5]
[364874794,1749283877460,-480.0,0.00028054,5]
[364874795,1749283877470,-480.0,0.00028054,5]
[364874796,1749283877479,-480.0,0.00028054,5]
[364874797,1749283877489,-480.0,0.00028054,5]
[364874798,1749283877500,-514.07,0.00028054,5]
[364874799,1749283877511,-480.0,0.00028054,5]
[364874800,1749283877521,-480.0,0.00028054,5]
[364874801,1749283877532,-480.0,0.00028054,5]
[364874802,1749283877542,-1423.16,0.00028054,5]
[364874803,1749283877559,-480.0,0.00028054,5]
[364874804,1749283877571,-480.0,0.00028054,5]
[364874805,1749283877582,-480.0,0.00028054,5]
[364874806,1749283877593,-1954.69,0.00028054,5]
[364874807,1749283877603,-185.34761096,0.00028054,5]
[364874808,1749283877615,-480.0,0.00028054,5]
[364874809,1749283877626,-624.11,0.00028054,5]
[364874810,1749283877636,-480.0,0.00028054,5]
[364874811,1749283877647,-480.0,0.00028054,5]
[364874812,1749283877658,-480.0,0.00028054,5]
[364874813,1749283877669,-480.0,0.00028054,5]
[364874814,1749283877680,-480.0,0.00028054,5]
[364874815,1749283877691,-480.0,0.00028054,5]
[364874816,1749283877702,-618.47,0.00028054,5]
[364874817,1749283877713,-485.91502863,0.00028054,5]
[364874818,1749283877724,-480.0,0.00028054,5]
[364874819,1749283877735,-1137.84,0.00028054,5]
[364874820,1749283877746,-480.0,0.00028054,5]
[364874821,1749283877757,-1163.74,0.00028054,5]
[364874822,1749283877768,-480.0,0.00028054,5]
[364874823,1749283877779,-480.0,0.00028054,5]
[364874824,1749283877790,-480.0,0.00028054,5]
[364874825,1749283877800,-480.0,0.00028054,5]
[364874826,1749283877811,-807.84,0.00028054,5]
[364874827,1749283877823,-1323.94,0.00028054,5]
[364874828,1749283877833,-480.0,0.00028054,5]
[364874829,1749283877844,-480.0,0.00028054,5]
[364874830,1749283877855,-480.0,0.00028054,5]
[364874831,1749283877867,-480.0,0.00028054,5]
[364874832,1749283877877,-480.0,0.00028054,5]
[364874833,1749283877888,-722.49,0.00028054,5]
[364874834,1749283877899,-480.0,0.00028054,5]
[364874835,1749283877911,-264.48206549,0.00028054,5]
[364874836,1749283877922,-480.0,0.00028054,5]
[364874837,1749283877933,-480.0,0.00028054,5]
[364874838,1749283877944,-480.0,0.00028054,5]
[364874839,1749283877954,-480.0,0.00028054,5]
[364874840,1749283877964,-1046.98,0.00028054,5]
[364874841,1749283877975,-480.0,0.00028054,5]
[364874842,1749283877991,-480.0,0.00028054,5]
[364874843,1749283878001,-508.27487436,0.00028054,5]
[364874844,1749283878012,-713.0,0.00028054,5]
[364874845,1749283878023,-480.0,0.00028054,5]
[364874846,1749283878034,-548.11,0.00028054,5]
[364874847,1749283878045,-480.0,0.00028054,5]
[364874848,1749283878055,-480.0,0.00028054,5]
[364874849,1749283878066,-882.53,0.00028054,5]
[364874850,1749283878076,-480.0,0.00028054,5]
[364874851,1749283878088,-494.44659675,0.00028054,5]
[364874852,1749283878099,-156.17312556,0.00028054,5]
[364874853,1749283878110,-480.0,0.00028054,5]
[364874854,1749283878121,-480.0,0.00028054,5]
[364874855,1749283878132,-480.0,0.00028054,5]
[364874856,1749283878142,-736.64,0.00028054,5]
[364874857,1749283878153,-480.0,0.00028054,5]
[364874858,1749283878164,-480.0,0.00028054,5]
[364874859,1749283878175,-480.0,0.00028054,5]
[364874860,1749283878185,-658.07,0.00028054,5]
[364874861,1749283878196,-480.0,0.00028054,5]
[364874862,1749283878207,-676.89,0.00028054,5]
[364874863,1749283878217,-592.83896231,0.00028054,5]
[364874864,1749283878227,-480.0,0.00028054,5]
[364874865,1749283878238,-611.81,0.00028054,5]
[364874866,1749283878248,-903.48,0.00028054,5]
[364874867,1749283878258,-545.14,0.00028054,5]
[364874868,1749283878269,-1030.91,0.00028054,5]
[364874869,1749283878279,-494.12012284,0.00028054,5]
[364874870,1749283878289,-151.0,0.00028054,7]
[364874871,1749283878299,-480.0,0.00028054,5]
[364874872,1749283878310,-151.0,0.00028054,7]
[364874873,1749283878322,-480.0,0.00028054,5]
[364874874,1749283878333,-480.0,0.00028054,5]
[364874875,1749283878343,-486.32732262,0.00028054,5]
[364874876,1749283878354,-1787.253615,0.00028054,5]
[364874877,1749283878365,-652.14,0.00028054,5]
[364874878,1749283878375,-480.0,0.00028054,5]
[364874879,1749283878385,-480.0,0.00028054,5]
[364874880,1749283878397,-1026.76,0.00028054,5]
[364874881,1749283878407,-480.0,0.00028054,5]
[364874882,1749283878417,-573.4,0.00028054,5]
[364874883,1749283878433,-873.46,0.00028054,5]
[364874884,1749283878443,-480.0,0.00028054,5]
[364874885,1749283878454,-480.0,0.00028054,5]
[364874886,1749283878464,-151.0,0.00028054,7]
[364874887,1749283878475,-787.2,0.00028054,5]
[364874888,1749283878485,-1212.38,0.00028054,5]
[364874889,1749283878496,-2102.121321,0.00028054,5]
[364874890,1749283878506,-480.0,0.00028054,5]
[364874891,1749283878517,-151.0,0.00028054,7]
[364874892,1749283878527,-480.0,0.00028054,5]
[364874893,1749283878538,-512.51169564,0.00028054,5]
[364874894,1749283878548,-480.0,0.00028054,5]
[364874895,1749283878559,-151.777042,0.00028054,7]
[364874896,1749283878570,-480.0,0.00028054,5]
[364874897,1749283878580,-480.0,0.00028054,5]
[364874898,1749283878591,-151.0,0.00028054,7]
[364874899,1749283878601,-1461.748382,0.00028054,7]
[364874900,1749283878612,-542.24734682,0.00028054,5]
[364874902,1749283878624,-480.0,0.00028054,5]
[364874903,1749283878635,-480.0,0.00028054,5]
[364874904,1749283878645,-1461.748382,0.00028054,7]
[364874905,1749283878656,-480.0,0.00028054,5]
[364874906,1749283878667,-151.0,0.00028054,7]
[364874907,1749283878677,-559.26,0.00028054,5]
[364874908,1749283878689,-1174.57,0.00028054,5]
[364874909,1749283878699,-480.0,0.00028054,5]
[364874910,1749283878708,-370.98250076,0.00028054,5]
[364874911,1749283878719,-850.33,0.00028054,5]
[364874912,1749283878729,-554.27,0.00028054,5]
[364874913,1749283878739,-480.0,0.00028054,5]
[364874914,1749283878749,-480.0,0.00028054,5]
[364874915,1749283878759,-480.0,0.00028054,5]
[364874916,1749283878770,-498.05041231,0.00028054,5]
[364874917,1749283878780,-737.61,0.00028054,5]
[364874918,1749283878790,-494.24,0.00028054,5]
[364874919,1749283878800,-490.00415254,0.00028054,5]
[364874920,1749283878810,-634.26,0.00028054,5]
[364874921,1749283878820,-835.68,0.00028054,5]
[364874922,1749283878830,-768.49,0.00028054,5]
[364874923,1749283878841,-480.0,0.00028054,5]
[364874924,1749283878851,-480.0,0.00028054,5]
[364874925,1749283878861,-323.35036483,0.00028054,5]
[364874926,1749283878873,-528.15,0.00028054,5]
[364874927,1749283878883,-480.0,0.00028054,5]
[364874928,1749283878893,-480.0,0.00028054,5]
[364874929,1749283878903,-248.105687,0.00028054,7]
[364874930,1749283878913,-1115.25,0.00028054,5]
[364874931,1749283878923,-480.0,0.00028054,5]
[364874932,1749283878934,-248.105687,0.00028054,7]
[364874933,1749283878944,-480.0,0.00028054,5]
[364874934,1749283878954,-2016.63,0.00028054,5]
[364874935,1749283878964,-480.0,0.00028054,5]
[364874936,1749283878975,-480.0,0.00028054,5]
[364874937,1749283878985,-485.39,0.00028054,5]
[364874938,1749283878995,-506.56028646,0.00028054,5]
[364874939,1749283879005,-480.0,0.00028054,5]
[364874940,1749283879015,-480.0,0.00028054,5]
[364874941,1749283879025,-480.0,0.00028054,5]
[364874942,1749283879035,-480.0,0.00028054,5]
[364874943,1749283879047,-984.78,0.00028054,5]
[364874944,1749283879057,-151.0,0.00028054,7]
[364874945,1749283879067,-480.0,0.00028054,5]
[364874946,1749283879077,-480.0,0.00028054,5]
[364874947,1749283879087,-480.0,0.00028054,5]
[364874948,1749283879096,-480.0,0.00028054,5]
[364874949,1749283879106,-480.0,0.00028054,5]
[364874950,1749283879117,-956.19,0.00028054,5]
[364874951,1749283879128,-480.0,0.00028054,5]
[364874952,1749283879137,-601.8,0.00028054,5]
[364874953,1749283879147,-798.33,0.00028054,5]
[364874954,1749283879157,-658.43,0.00028054,5]
[364874955,1749283879166,-984.27,0.00028054,5]
[364874956,1749283879176,-853.62,0.00028054,5]
[364874957,1749283879186,-480.0,0.00028054,5]
[364874958,1749283879196,-480.0,0.00028054,5]
[364874959,1749283879206,-480.0,0.00028054,5]
[364874960,1749283879216,-485.61466262,0.00028054,5]
[364874961,1749283879226,-480.0,0.00028054,5]
[364874962,1749283879235,-1719.89,0.00028054,5]
[364874963,1749283879245,-879.54,0.00028054,5]
[364874964,1749283879254,-990.87,0.00028054,5]
[364874965,1749283879264,-769.25,0.00028054,5]
[364874966,1749283879273,-1000.0,0.00028054,5]
[364874967,1749283879283,-420.11824629,0.00028054,5]
[364874968,1749283879293,-480.0,0.00028054,5]
[364874969,1749283879303,-604.92171895,0.00028054,5]
[364874970,1749283879313,-619.63,0.00028054,5]
[364874971,1749283879326,-480.0,0.00028054,5]
[364874972,1749283879336,-480.0,0.00028054,5]
[364874973,1749283879346,-964.13,0.00028054,5]
[364874974,1749283879356,-480.0,0.00028054,5]
[364874975,1749283879367,-480.0,0.00028054,5]
[364874976,1749283879377,-614.65,0.00028054,5]
[364874977,1749283879387,-480.0,0.00028054,5]
[364874978,1749283879397,-492.94583877,0.00028054,5]
[364874979,1749283879407,-480.0,0.00028054,5]
[364874980,1749283879417,-620.08,0.00028054,5]
[364874981,1749283879427,-225.218056,0.00028054,7]
[364874982,1749283879437,-959.52,0.00028054,5]
[364874983,1749283879447,-225.218056,0.00028054,7]
[364874984,1749283879456,-481.61,0.00028054,5]
[364874985,1749283879466,-607.29,0.00028054,5]
[364874986,1749283879476,-1150.03,0.00028054,5]
[364874987,1749283879487,-480.0,0.00028054,5]
[364874988,1749283879498,-647.25,0.00028054,5]
[364874989,1749283879509,-1086.55,0.00028054,5]
[364874990,1749283879518,-480.0,0.00028054,5]
[364874991,1749283879528,-480.0,0.00028054,5]
[364874992,1749283879538,-1473.87,0.00028054,5]
[364874993,1749283879548,-480.0,0.00028054,5]
[364874994,1749283879559,-480.0,0.00028054,5]
[364874995,1749283879570,-7690.81,0.00028054,5]
[364874996,1749283879580,-480.0,0.00028054,5]
[364874997,1749283879591,-480.0,0.00028054,5]
[364874998,1749283879601,-480.0,0.00028054,5]
[364874999,1749283879611,-480.0,0.00028054,5]
[364875000,1749283879622,-1206.45,0.00028054,5]
[364875001,1749283879632,-480.0,0.00028054,5]
[364875002,1749283879643,-480.0,0.00028054,5]
[364875003,1749283879652,-480.0,0.00028054,5]
[364875004,1749283879663,-480.0,0.00028054,5]
[364875005,1749283879674,-480.0,0.00028054,5]
[364875006,1749283879684,-594.14,0.00028054,5]
[364875007,1749283879695,-480.0,0.00028054,5]
[364875008,1749283879706,-656.54,0.00028054,5]
[364875009,1749283879716,-665.13,0.00028054,5]
[364875010,1749283879726,-509.24,0.00028054,5]
[364875011,1749283879736,-480.0,0.00028054,5]
[364875012,1749283879746,-151.0,0.00028054,7]